bitfinex-derivatives/quotes_SOLF0:USTF0_20250501
["timestamp","ask_amount","ask_price","bid_price","bid_amount"]
[1746082924898,7.1329819,148.53,148.45,25.4664]
[1746082925302,6.7331,148.5,148.45,23.5]
[1746082925905,6.7335,148.49,148.46,6.7346]
[1746082926306,25.5862,148.52,148.45,23.5]
[1746082926606,6.7338,148.49,148.45,30.2352]
[1746082926902,6.7337,148.49,148.45,30.2352]
[1746082929807,6.7337,148.49,148.46,6.7347]
[1746082930209,25.5862,148.52,148.45,23.5]
[1746082930403,25.5862,148.52,148.47,6.734]
[1746082931109,6.7332,148.5,148.47,6.734]
[1746082931406,6.7332,148.5,148.46,6.7346]
[1746082931607,6.7338,148.49,148.46,6.7346]
[1746082932408,6.7331,148.5,148.47,6.7343]
[1746082932610,25.5862,148.52,148.47,6.7343]
[1746082932810,25.5862,148.52,148.45,23.5]
[1746082933011,25.5862,148.52,148.47,6.7339]
[1746082933012,6.7327,148.51,148.47,6.7339]
[1746082933812,4.78051616,148.5,148.47,6.7339]
[1746082934010,4.78051616,148.49,148.47,6.7339]
[1746082934211,4.78051616,148.48,148.47,6.7339]
[1746082936516,4.78258044,148.48,148.47,6.7339]
[1746082939320,6.733,148.5,148.47,6.7339]
[1746082939518,4.7844631,148.49,148.45,23.5]
[1746082939718,4.7844631,148.48,148.45,23.5]
[1746082940017,4.7844631,148.47,148.45,23.5]
[1746082940219,6.7327,148.51,148.48,6.7337]
[1746082940519,4.78506029,148.5,148.48,6.7337]
[1746082940720,4.78506029,148.49,148.48,6.7337]
[1746082941723,4.78581973,148.49,148.48,6.7337]
[1746082944922,6.7312,148.54,148.52,6.732]
[1746082945118,4.79097701,148.53,148.52,6.732]
[1746082945916,4.79097701,148.53,148.51,6.7322]
[1746082946120,4.79097701,148.52,148.51,6.7322]
[1746082946323,4.79420637,148.52,148.51,6.7322]
[1746082946921,4.79437218,148.52,148.51,6.7322]
[1746082947111,4.79437218,148.52,148.5,6.7329]
[1746082947315,4.79437218,148.51,148.5,6.7329]
[1746082948922,6.7313,148.54,148.52,6.732]
[1746082949218,4.79702556,148.53,148.52,6.732]
[1746082949922,4.79702556,148.53,148.51,6.7323]
[1746082950119,4.79702556,148.52,148.51,6.7323]
[1746082950821,4.79971301,148.52,148.49,23.88]
[1746082951024,4.79971301,148.51,148.49,23.88]
[1746082951320,4.79971301,148.5,148.49,30.6134]
[1746082951916,6.7306,148.56,148.52,6.7316]
[1746082952427,6.7306,148.56,148.53,6.7315]
[1746082952923,25.9401,148.58,148.53,6.7315]
[1746082953423,6.7305,148.56,148.53,6.7315]
[1746082954818,6.73,148.57,148.54,6.7311]
[1746082955024,23.88,148.58,148.49,31.0129819]
[1746082955224,1.9366,148.59,148.49,31.0129819]
[1746082955723,1.9366,148.59,148.54,6.7308]
[1746082955724,6.7298,148.57,148.54,6.7308]
[1746082956016,6.7298,148.57,148.52,23.88]
[1746082956218,6.7298,148.57,148.55,6.7307]
[1746082958219,6.7295,148.58,148.52,23.88]
[1746082958424,6.7295,148.58,148.56,6.7302]
[1746082958925,8.6656,148.59,148.56,6.7302]
[1746082959317,6.729,148.59,148.56,6.7302]
[1746082960224,6.7294,148.58,148.55,6.7305]
[1746082960424,7.1329819,148.59,148.52,23.88]
[1746082960925,6.73,148.57,148.54,6.7308]
[1746082961125,7.1329819,148.59,148.52,23.88]
[1746082961622,6.7305,148.56,148.53,6.7313]
[1746082961824,7.1329819,148.59,148.52,23.88]
[1746082962625,6.7301,148.57,148.54,6.7311]
[1746082966036,6.7303,148.56,148.53,6.7314]
[1746082967930,6.7303,148.56,148.54,6.7311]
[1746082968228,6.7299,148.57,148.54,6.7311]
[1746082968533,23.88,148.61,148.52,23.88]
[1746082968824,6.7286,148.6,148.53,6.1437]
[1746082969138,23.88,148.61,148.53,6.1437]
[1746082969326,6.7291,148.59,148.53,6.1437]
[1746082969532,6.7291,148.59,148.56,6.7299]
[1746082971032,6.7296,148.58,148.55,6.7305]
[1746082974829,6.7296,148.58,148.56,6.7302]
[1746082975033,6.7291,148.59,148.56,6.7302]
[1746082975735,23.88,148.61,148.53,6.1437]
[1746082976336,23.88,148.61,148.59,6.7289]
[1746082976538,9.1490819,148.62,148.59,6.7289]
[1746082977041,6.7282,148.61,148.58,6.7291]
[1746082980629,6.7286,148.6,148.57,6.7296]
[1746082990247,9.1490819,148.62,148.53,29.8837]
[1746082991247,6.7296,148.58,148.55,6.7306]
[1746082992349,6.7296,148.58,148.56,6.7302]
[1746082992556,7.1329819,148.62,148.53,29.8837]
[1746082992744,23.74,148.64,148.53,29.8837]
[1746082993149,6.7277,148.62,148.59,6.7288]
[1746082997368,23.74,148.64,148.57,23.74]
[1746082997554,1.9165,148.66,148.57,23.74]
[1746082997855,23.64,148.67,148.58,4.1433]
[1746082998155,6.7264,148.65,148.58,4.1433]
[1746082998356,6.7264,148.65,148.58,6.2418]
[1746082998555,6.7264,148.65,148.62,6.7272]
[1746082998862,23.64,148.67,148.61,23.64]
[1746082999062,29.685,148.7,148.61,23.64]
[1746082999959,6.7254,148.67,148.64,6.7263]
[1746083004068,6.7258,148.66,148.64,6.7263]
[1746083004263,6.7258,148.66,148.63,6.7269]
[1746083005666,6.7255,148.67,148.64,6.7266]
[1746083006965,6.7246,148.69,148.61,23.64]
[1746083007165,6.7246,148.69,148.61,30.7729819]
[1746083007665,556.72,148.73,148.67,6.7252]
[1746083007666,6.7241,148.7,148.67,6.7252]
[1746083007961,556.72,148.73,148.65,23.62]
[1746083008161,6.7239,148.71,148.67,6.7251]
[1746083008563,23.62,148.73,148.67,6.7251]
[1746083009166,23.62,148.73,148.66,6.7255]
[1746083009464,6.7246,148.69,148.65,23.62]
[1746083009766,6.7246,148.69,148.66,6.7256]
[1746083015171,6.7246,148.69,148.65,30.3459]
[1746083015769,6.7246,148.69,148.66,6.7256]
[1746083022776,6.7246,148.69,148.67,6.7252]
[1746083024480,6.7241,148.7,148.67,6.7252]
[1746083026981,6.7235,148.71,148.68,6.7245]
[1746083027174,6.7235,148.71,148.65,23.62]
[1746083027378,23.62,148.73,148.65,23.62]
[1746083027681,6.7235,148.71,148.68,6.7245]
[1746083031577,11.28360922,148.71,148.68,6.7245]
[1746083032182,4.56010922,148.71,148.65,28.18010922]
[1746083032779,6.7248,148.69,148.66,6.7254]
[1746083033081,4.56010922,148.71,148.65,28.18010922]
[1746083033284,6.7243,148.7,148.65,28.18010922]
[1746083033887,6.7243,148.7,148.66,6.7253]
[1746083034187,6.7245,148.69,148.66,6.7253]
[1746083036087,6.7245,148.69,148.67,6.7252]
[1746083037789,4.56010922,148.71,148.68,6.7247]
[1746083038791,11.28370922,148.71,148.68,6.7247]
[1746083040588,6.7232,148.72,148.69,6.7241]
[1746083040788,4.56010922,148.73,148.67,4.56010922]
[1746083041994,11.28270922,148.73,148.7,6.7236]
[1746083042289,4.56010922,148.73,148.67,4.56010922]
[1746083042691,4.56010922,148.73,148.71,6.7232]
[1746083042886,6.7223,148.74,148.71,6.7232]
[1746083044292,6.7223,148.74,148.7,6.7237]
[1746083044595,6.7228,148.73,148.7,6.7237]
[1746083045094,6.7228,148.73,148.71,6.7234]
[1746083047198,6.7222,148.74,148.72,6.7229]
[1746083047493,4.56010922,148.75,148.72,6.7229]
[1746083047992,11.28200922,148.75,148.72,6.7229]
[1746083049296,4.56010922,148.76,148.71,4.56010922]
[1746083050395,11.28130922,148.76,148.71,4.56010922]
[1746083050597,4.56010922,148.76,148.71,4.56010922]
[1746083051098,6.7217,148.75,148.72,6.7227]
[1746083051395,6.7217,148.75,148.71,4.56010922]
[1746083051596,6.7217,148.75,148.72,6.7227]
[1746083055797,4.56010922,148.74,148.69,23.52]
[1746083055996,4.56010922,148.74,148.69,23.5]
[1746083056702,6.7228,148.73,148.7,6.7238]
[1746083057402,6.7228,148.73,148.71,6.7234]
[1746083058699,11.28240922,148.74,148.71,6.7234]
[1746083059903,6.7227,148.73,148.7,6.7237]
[1746083060603,6.7227,148.73,148.71,6.7233]
[1746083061905,6.7227,148.73,148.7,6.7237]
[1746083062505,6.7227,148.73,148.71,6.7234]
[1746083063506,11.28240922,148.74,148.71,6.7234]
[1746083064908,6.7226,148.73,148.7,6.7237]
[1746083066510,4.56010922,148.74,148.69,23.5]
[1746083066705,4.56010922,148.76,148.7,4.56010922]
[1746083067409,1.9343,148.78,148.7,4.56010922]
[1746083067606,6.49440922,148.78,148.72,4.56010922]
[1746083067912,6.7214,148.76,148.73,6.7222]
[1746083068210,6.49440922,148.78,148.72,4.56010922]
[1746083068511,6.7212,148.76,148.73,6.7224]
[1746083070308,6.7212,148.76,148.74,6.722]
[1746083070512,6.7212,148.76,148.72,4.56010922]
[1746083070914,6.7212,148.76,148.73,6.7222]
[1746083075919,6.7217,148.75,148.73,6.7222]
[1746083077116,6.7226,148.73,148.69,28.06010922]
[1746083077312,6.7226,148.73,148.68,4.56010922]
[1746083077512,6.7226,148.73,148.69,23.42]
[1746083078218,6.7226,148.73,148.71,6.7234]
[1746083081121,11.28240922,148.74,148.71,6.7234]
[1746083081321,4.56010922,148.75,148.7,4.56010922]
[1746083081819,4.56010922,148.75,148.73,6.7222]
[1746083082022,6.7215,148.76,148.73,6.7222]
[1746083083323,11.28180922,148.75,148.73,6.7222]
[1746083083513,11.28180922,148.75,148.72,6.7228]
[1746083085325,4.56010922,148.75,148.74,6.7221]
[1746083085532,6.7213,148.76,148.74,6.7221]
[1746083086134,6.7213,148.76,148.73,6.7223]
[1746083086534,6.7208,148.77,148.69,23.42]
[1746083086732,1.9343,148.78,148.69,23.42]
[1746083087134,6.7211,148.77,148.69,23.42]
[1746083087332,1.9343,148.78,148.73,6.7222]
[1746083088837,6.721,148.77,148.74,6.722]
[1746083091239,6.7205,148.78,148.75,6.7216]
[1746083091741,6.7208,148.77,148.75,6.7216]
[1746083091934,6.7208,148.77,148.74,6.7219]
[1746083092840,6.7212,148.76,148.73,30.1423]
[1746083095542,6.7209,148.77,148.74,6.7221]
[1746083099845,6.7212,148.76,148.73,30.1424]
[1746083100049,34.83509133,148.79,148.73,23.42]
[1746083100343,6.7225,148.74,148.68,6.7246]
[1746083100537,6.7225,148.74,148.69,23.42]
[1746083102240,6.7225,148.74,148.71,6.7233]
[1746083103746,6.7227,148.73,148.7,6.7236]
[1746083104246,6.7219,148.75,148.69,23.42]
[1746083104942,6.7222,148.74,148.71,6.7232]
[1746083106949,6.7226,148.73,148.71,6.7232]
[1746083107349,27.7145,148.79,148.73,6.7225]
[1746083107549,27.7145,148.79,148.69,23.42]
[1746083108053,6.7214,148.76,148.72,6.723]
[1746083108650,6.7217,148.75,148.72,6.723]
[1746083108847,27.7145,148.79,148.72,6.723]
[1746083109150,7.12059133,148.78,148.71,6.7233]
[1746083109551,4.55816659,148.75,148.71,6.7233]
[1746083110149,4.55816659,148.75,148.72,6.723]
[1746083110349,4.55816659,148.75,148.69,23.42]
[1746083111152,6.7221,148.74,148.71,6.7231]
[1746083111353,4.55816659,148.75,148.71,6.7231]
[1746083111654,6.7228,148.73,148.7,6.7237]
[1746083113253,11.28016659,148.75,148.71,6.7233]
[1746083113645,4.55816659,148.77,148.7,4.55816659]
[1746083113849,6.7215,148.76,148.72,6.7229]
[1746083114152,6.7215,148.76,148.7,4.55816659]
[1746083115645,28.05816659,148.79,148.72,4.55816659]
[1746083115855,28.05816659,148.79,148.75,6.7214]
[1746083116351,28.05816659,148.79,148.76,6.7209]
[1746083116855,34.77826659,148.79,148.76,6.7209]
[1746083117553,34.77826659,148.79,148.77,6.7207]
[1746083117755,11.27776659,148.8,148.77,6.7207]
[1746083118357,4.55816659,148.8,148.78,6.7202]
[1746083119261,36.63526659,148.82,148.79,6.7198]
[1746083119459,32.0771,148.82,148.79,6.7198]
[1746083119958,6.7189,148.81,148.78,6.7201]
[1746083120561,6.7189,148.81,148.77,6.7206]
[1746083120956,6.7194,148.8,148.77,6.7206]
[1746083121461,6.7194,148.8,148.74,6.1459]
[1746083121462,6.7194,148.8,148.76,6.721]
[1746083122057,6.7198,148.79,148.76,6.721]
[1746083127265,23.42,148.82,148.74,6.1459]
[1746083127663,6.7196,148.8,148.77,6.7207]
[1746083128763,23.4,148.85,148.77,23.4]
[1746083129466,6.7185,148.82,148.79,6.7194]
[1746083129665,23.4,148.85,148.77,23.4]
[1746083129965,6.7183,148.83,148.8,6.7191]
[1746083130167,6.7183,148.83,148.77,23.4]
[1746083130566,6.7185,148.82,148.79,6.7196]
[1746083131269,6.7185,148.82,148.78,6.7201]
[1746083131567,6.719,148.81,148.78,6.7201]
[1746083132068,23.4,148.85,148.77,23.4]
[1746083133463,6.7203,148.78,148.77,23.4]
[1746083136474,6.72,148.79,148.77,23.4]
[1746083137974,6.7203,148.78,148.77,23.4]
[1746083140481,7.11565392,148.84,148.77,23.4]
[1746083141480,4.55482173,148.8,148.77,23.4]
[1746083142082,6.7198,148.79,148.77,23.4]
[1746083142683,4.55482173,148.81,148.77,23.4]
[1746083142983,23.4,148.85,148.77,23.4]
[1746083142984,4.55482173,148.83,148.77,23.4]
[1746083144184,6.7192,148.81,148.78,6.7201]
[1746083144582,4.55482173,148.83,148.77,23.4]
[1746083144785,6.7195,148.8,148.77,30.1205]
[1746083145884,30.51539254,148.85,148.77,23.4]
[1746083146584,6.7203,148.78,148.77,23.4]
[1746083146782,6.7203,148.78,148.75,6.7214]
[1746083148584,6.7203,148.78,148.76,6.7211]
[1746083148785,30.51539254,148.85,148.76,6.7211]
[1746083150185,6.7199,148.79,148.76,6.7211]
[1746083150991,6.7199,148.79,148.77,6.7207]
[1746083151181,6.7196,148.8,148.77,6.7207]
[1746083153387,6.7199,148.79,148.77,6.7207]
[1746083154189,6.7199,148.79,148.74,29.5459]
[1746083154190,6.7199,148.79,148.76,6.721]
[1746083158096,6.7203,148.78,148.76,6.721]
[1746083158397,7.11539254,148.82,148.74,30.1219]
[1746083158789,7.11539254,148.82,148.74,23.4]
[1746083158989,7.11539254,148.82,148.76,6.7211]
[1746083159190,30.51539254,148.82,148.76,6.7211]
[1746083159695,6.7203,148.78,148.76,6.7211]
[1746083159896,6.7203,148.78,148.75,6.7214]
[1746083160897,30.51539254,148.82,148.76,6.7211]
[1746083161400,6.7202,148.79,148.76,6.7211]
[1746083161695,23.4,148.82,148.74,23.4]
[1746083162087,6.7194,148.8,148.77,6.7203]
[1746083165196,6.7194,148.8,148.78,6.7202]
[1746083167205,6.719,148.81,148.78,6.7202]
[1746083167705,6.7194,148.8,148.77,11.27368327]
[1746083168001,6.7194,148.8,148.77,4.55318327]
[1746083169204,6.7194,148.8,148.78,6.7202]
[1746083170706,6.719,148.81,148.78,6.7202]
[1746083171103,4.55318327,148.83,148.78,6.7202]
[1746083171603,4.55318327,148.83,148.79,6.7198]
[1746083171908,6.719,148.81,148.77,4.55318327]
[1746083172607,6.719,148.81,148.78,6.72]
[1746083174604,23.4,148.85,148.77,27.95318327]
[1746083174804,4.55318327,148.84,148.77,27.95318327]
[1746083175005,4.55318327,148.84,148.79,4.55318327]
[1746083176110,6.7183,148.83,148.79,4.55318327]
[1746083176809,6.7183,148.83,148.81,6.7189]
[1746083178205,6.7183,148.83,148.8,6.7192]
[1746083178510,6.7185,148.82,148.77,23.4]
[1746083178810,6.7185,148.82,148.79,6.7197]
[1746083179107,6.7185,148.82,148.77,23.4]
[1746083179307,4.55318327,148.83,148.77,23.4]
[1746083180310,6.7186,148.82,148.79,6.7197]
[1746083181913,11.27138327,148.83,148.8,6.7193]
[1746083182209,4.55318327,148.83,148.8,6.7193]
[1746083182511,6.7185,148.82,148.79,6.7197]
[1746083183515,11.27128327,148.83,148.8,6.7193]
[1746083183812,11.27128327,148.83,148.78,4.55318327]
[1746083184015,4.55318327,148.83,148.77,23.4]
[1746083184509,6.719,148.81,148.78,6.72]
[1746083184708,4.55318327,148.83,148.78,6.72]
[1746083185215,6.7187,148.82,148.79,6.7197]
[1746083185417,4.55318327,148.83,148.78,4.55318327]
[1746083185815,11.27148327,148.83,148.8,6.7193]
[1746083186217,4.55318327,148.83,148.8,6.7193]
[1746083187020,11.27118327,148.83,148.8,6.7193]
[1746083187317,6.718,148.83,148.8,6.7193]
[1746083188122,6.7177,148.84,148.81,6.7189]
[1746083188323,4.55318327,148.86,148.8,4.55318327]
[1746083188720,6.7174,148.85,148.82,6.7182]
[1746083190625,11.26988327,148.86,148.83,6.7178]
[1746083190922,4.55318327,148.86,148.8,4.55318327]
[1746083191320,6.7172,148.85,148.82,6.7182]
[1746083193324,6.7172,148.85,148.83,6.718]
[1746083193521,11.26998327,148.86,148.83,6.718]
[1746083198227,6.7171,148.85,148.83,6.718]
[1746083199428,6.7171,148.85,148.82,6.7183]
[1746083199627,4.55318327,148.86,148.81,27.95318327]
[1746083201029,6.7174,148.85,148.82,6.7182]
[1746083203326,6.7176,148.84,148.82,6.7182]
[1746083203533,4.55318327,148.84,148.77,4.55318327]
[1746083203733,4.55318327,148.82,148.77,23.4]
[1746083203935,6.7192,148.81,148.78,6.7199]
[1746083204128,4.55318327,148.82,148.77,23.4]
[1746083204528,6.7197,148.8,148.77,30.1206]
[1746083205133,4.55318327,148.82,148.78,6.7202]
[1746083205134,6.7191,148.81,148.78,6.7202]
[1746083205434,4.55318327,148.82,148.77,27.95318327]
[1746083205741,6.7172,148.85,148.81,4.55318327]
[1746083206238,6.7167,148.86,148.83,6.7176]
[1746083206739,6.7164,148.87,148.81,4.55318327]
[1746083206940,11.26958327,148.87,148.81,27.95318327]
[1746083207235,4.55318327,148.87,148.83,6.7178]
[1746083207538,6.7167,148.86,148.83,6.7178]
[1746083207732,6.7167,148.86,148.81,23.4]
[1746083208444,6.7167,148.86,148.83,6.7177]
[1746083208741,23.4,148.88,148.81,23.4]
[1746083209238,23.4,148.88,148.82,6.7183]
[1746083209443,6.7173,148.85,148.82,6.7183]
[1746083215250,6.7173,148.85,148.83,6.7179]
[1746083216348,6.7173,148.85,148.82,6.7183]
[1746083222649,6.7173,148.85,148.81,23.4]
[1746083223152,6.7173,148.85,148.82,6.7183]
[1746083224648,23.4,148.88,148.81,23.4]
[1746083225649,6.7184,148.83,148.81,23.4]
[1746083226050,23.4,148.88,148.81,23.4]
[1746083226250,6.7179,148.84,148.81,30.1189]
[1746083226853,6.7173,148.85,148.82,6.7182]
[1746083228655,6.7173,148.85,148.83,6.718]
[1746083228856,6.7169,148.86,148.83,6.718]
[1746083229351,6.7169,148.86,148.81,23.4]
[1746083229552,6.7169,148.86,148.82,4.55034446]
[1746083229752,6.7169,148.86,148.83,6.7178]
[1746083230563,23.4,148.88,148.82,4.55034446]
[1746083231054,4.55034446,148.89,148.84,4.55034446]
[1746083231449,6.7162,148.88,148.85,6.7168]
[1746083231655,29.5192,148.91,148.82,6.1183]
[1746083231849,6.7151,148.9,148.87,6.716]
[1746083232262,6.7151,148.9,148.85,23.38]
[1746083232455,6.7151,148.9,148.87,6.7159]
[1746083232756,30.0946,148.91,148.85,23.38]
[1746083233057,555.68,148.94,148.88,6.7155]
[1746083233457,6.7152,148.9,148.85,23.38]
[1746083233658,6.7152,148.9,148.87,6.716]
[1746083235452,6.7156,148.89,148.86,6.7166]
[1746083238367,6.7159,148.88,148.86,6.7166]
[1746083238567,555.68,148.94,148.86,6.7166]
[1746083238764,6.7155,148.89,148.86,6.7166]
[1746083240868,6.7158,148.88,148.85,30.0969]
[1746083241673,6.7158,148.88,148.86,6.7167]
[1746083243769,6.7155,148.89,148.86,6.7167]
[1746083244169,7.10778446,148.93,148.86,6.7167]
[1746083245170,6.7156,148.89,148.86,6.7167]
[1746083245970,7.10778446,148.87,148.75,23.38]
[1746083246168,23.38,148.86,148.76,2.0995]
[1746083246565,6.7182,148.83,148.76,2.0995]
[1746083246966,6.7187,148.82,148.79,6.7196]
[1746083249267,6.7187,148.82,148.8,6.7193]
[1746083250474,6.718,148.84,148.81,6.7189]
[1746083254771,6.718,148.84,148.82,6.7185]
[1746083255075,23.38,148.86,148.82,6.7185]
[1746083255374,6.7173,148.85,148.82,6.7185]
[1746083257081,6.7178,148.84,148.81,6.7188]
[1746083257378,23.38,148.86,148.81,6.7188]
[1746083257673,23.38,148.86,148.8,6.7191]
[1746083257874,23.38,148.86,148.76,25.4795]
[1746083258377,6.7187,148.82,148.79,6.7196]
[1746083260582,6.7187,148.82,148.8,6.7193]
[1746083261682,6.7183,148.83,148.8,6.7193]
[1746083262987,6.7178,148.84,148.81,6.7185]
[1746083263385,23.38,148.86,148.76,25.4795]
[1746083263588,6.7173,148.85,148.82,6.7183]
[1746083265290,6.7173,148.85,148.83,6.718]
[1746083265490,23.38,148.86,148.83,6.718]
[1746083266392,30.097,148.86,148.83,6.718]
[1746083269298,6.7171,148.85,148.83,6.718]
[1746083270899,30.0969,148.86,148.83,6.718]
[1746083271298,23.38,148.86,148.83,6.718]
[1746083272200,6.7172,148.85,148.83,6.718]
[1746083278303,6.7172,148.85,148.8,23.38]
[1746083279506,11.26843868,148.85,148.8,27.93123868]
[1746083280009,11.26843868,148.85,148.82,6.718]
[1746083280307,11.26843868,148.85,148.8,27.93123868]
[1746083280705,11.26843868,148.85,148.83,6.7179]
[1746083281303,25.378,148.88,148.82,4.55123868]
[1746083281504,4.55123868,148.87,148.82,4.55123868]
[1746083281905,11.26773868,148.87,148.84,6.7171]
[1746083282106,11.26773868,148.87,148.82,4.55123868]
[1746083283212,11.26773868,148.87,148.85,6.7171]
[1746083284112,6.7167,148.86,148.84,6.7175]
[1746083287114,6.7167,148.86,148.83,6.7179]
[1746083287915,4.55123868,148.88,148.82,4.55123868]
[1746083288611,11.26733868,148.88,148.85,6.7169]
[1746083288918,4.55123868,148.88,148.85,6.7169]
[1746083289816,6.7163,148.87,148.85,6.7169]
[1746083293720,6.716,148.88,148.85,6.7169]
[1746083297424,30.0953,148.89,148.81,6.024]
[1746083297623,23.38,148.89,148.81,6.024]
[1746083299225,6.7158,148.88,148.86,6.7164]
[1746083300327,30.0955,148.89,148.87,6.7162]
[1746083300728,6.7155,148.89,148.87,6.7162]
[1746083302027,6.7151,148.9,148.88,6.7157]
[1746083304433,6.7146,148.91,148.88,6.7157]
[1746083310234,6.7146,148.91,148.89,6.7152]
[1746083310436,30.094,148.92,148.89,6.7152]
[1746083311130,6.7132,148.94,148.87,23.36]
[1746083311640,6.7132,148.94,148.91,6.714]
[1746083311838,30.073,148.95,148.88,3.9552]
[1746083312134,23.36,148.95,148.88,3.9552]
[1746083312335,6.7131,148.94,148.92,6.7137]
[1746083312537,23.36,148.95,148.92,6.7137]
[1746083314239,6.7131,148.94,148.92,6.7137]
[1746083315541,11.25922665,148.94,148.92,6.7137]
[1746083317343,4.54612665,148.94,148.92,6.7137]
[1746083319048,11.25922665,148.94,148.92,6.7137]
[1746083319343,11.25922665,148.94,148.91,6.7142]
[1746083320645,11.25922665,148.94,148.92,6.7139]
[1746083324050,4.54612665,148.94,148.93,6.7135]
[1746083324745,11.25852665,148.96,148.93,6.7135]
[1746083326656,6.7127,148.95,148.92,6.7138]
[1746083327155,11.25862665,148.96,148.93,6.7132]
[1746083327655,4.54612665,148.96,148.93,6.7132]
[1746083328155,11.25842665,148.96,148.93,6.7132]
[1746083330656,6.7126,148.95,148.93,6.7132]
[1746083334264,11.25842665,148.96,148.94,6.7131]
[1746083334465,4.54612665,148.96,148.91,23.36]
[1746083334963,6.7126,148.95,148.93,6.7131]
[1746083337164,6.7131,148.94,148.92,6.7137]
[1746083337464,11.25922665,148.94,148.92,6.7137]
[1746083338459,6.7135,148.93,148.91,23.36]
[1746083339065,11.25942665,148.94,148.91,30.074]
[1746083340567,6.7137,148.93,148.91,23.36]
[1746083340769,4.54612665,148.94,148.88,31.86132665]
[1746083341068,11.25942665,148.94,148.92,6.7139]
[1746083341269,4.54612665,148.94,148.92,6.7139]
[1746083341672,11.25942665,148.94,148.92,6.7139]
[1746083342368,4.54612665,148.94,148.93,6.7135]
[1746083342573,34.61872665,148.96,148.93,6.7135]
[1746083342867,34.61842665,148.96,148.9,4.54612665]
[1746083343364,34.61842665,148.96,148.93,6.7131]
[1746083343570,11.25842665,148.96,148.93,6.7131]
[1746083343770,6.7126,148.95,148.93,6.7131]
[1746083343971,4.54612665,148.96,148.93,6.7131]
[1746083344271,11.25862665,148.96,148.93,6.7131]
[1746083345273,4.54612665,148.96,148.94,6.7128]
[1746083346373,11.25852665,148.96,148.94,6.7128]
[1746083346572,11.25852665,148.96,148.93,6.7133]
[1746083347472,6.7127,148.95,148.93,6.7133]
[1746083347673,4.54612665,148.96,148.93,6.7133]
[1746083348274,11.25862665,148.96,148.93,6.7133]
[1746083352177,6.7127,148.95,148.93,6.7133]
[1746083355383,11.25942665,148.94,148.88,27.3152]
[1746083355880,4.54612665,148.94,148.92,6.7139]
[1746083356582,6.7128,148.95,148.92,6.7139]
[1746083357280,4.54612665,148.96,148.94,6.7131]
[1746083360683,4.54612665,148.96,148.93,6.7133]
[1746083361478,6.7126,148.95,148.93,6.7133]
[1746083361684,4.54612665,148.96,148.93,6.7133]
[1746083361983,11.25852665,148.96,148.93,6.7133]
[1746083363686,11.25852665,148.96,148.94,6.713]
[1746083363987,6.7119,148.97,148.94,6.713]
[1746083364185,11.25802665,148.97,148.94,6.713]
[1746083364686,6.7123,148.96,148.93,6.7134]
[1746083365989,4.54612665,148.97,148.92,23.34]
[1746083366183,4.54612665,148.93,148.88,3.9552]
[1746083366587,11.25992665,148.93,148.9,6.7147]
[1746083367084,4.54612665,148.93,148.9,6.7147]
[1746083367678,11.25992665,148.93,148.9,6.7147]
[1746083369689,6.7141,148.92,148.89,6.7151]
[1746083372790,6.7145,148.91,148.89,6.7151]
[1746083375691,6.7141,148.92,148.89,6.7151]
[1746083376495,6.7141,148.92,148.9,6.7148]
[1746083378798,6.7149,148.9,148.88,6.7155]
[1746083379099,4.54612665,148.93,148.87,23.34]
[1746083379391,6.7143,148.92,148.89,6.7153]
[1746083380000,6.7143,148.92,148.9,6.7148]